lending/lending_fUSD_20250719
["ID","MTS","AMOUNT","RATE_DAILY","PERIOD"]
[373306992,1752937859800,-480.0,0.00019178,2]
[373306993,1752937859809,-500.0,0.00019178,2]
[373306994,1752937859820,-500.0,0.00019178,2]
[373306995,1752937859830,-480.0,0.00019178,2]
[373306996,1752937859840,-441.31688209,0.00019178,2]
[373306997,1752937859850,-500.0,0.00019178,2]
[373306998,1752937859860,-480.0,0.00019178,2]
[373306999,1752937859872,-500.0,0.00019178,2]
[373307000,1752937859882,-500.0,0.00019178,2]
[373307001,1752937859892,-645.53,0.00019178,2]
[373307002,1752937859902,-500.0,0.00019178,2]
[373307003,1752937859912,-500.0,0.00019178,2]
[373307004,1752937859923,-500.0,0.00019178,2]
[373307005,1752937859933,-441.67522003,0.00019178,2]
[373307006,1752937859943,-480.0,0.00019178,2]
[373307007,1752937859953,-480.0,0.00019178,2]
[373307008,1752937859963,-440.0,0.00019178,2]
[373307009,1752937859974,-480.0,0.00019178,2]
[373307010,1752937859984,-1621.2,0.00019178,2]
[373307011,1752937859994,-480.0,0.00019178,2]
[373307012,1752937860004,-440.0,0.00019178,2]
[373307013,1752937860014,-576.09513866,0.00019178,2]
[373307014,1752937860024,-755.59,0.00019178,2]
[373307015,1752937860034,-480.0,0.00019178,2]
[373307016,1752937860044,-480.0,0.00019178,2]
[373307017,1752937860055,-171.64868391,0.00019178,2]
[373307018,1752937860066,-480.0,0.00019178,2]
[373307019,1752937860076,-480.0,0.00019178,2]
[373307020,1752937860086,-786.49,0.00019178,2]
[373307021,1752937860095,-480.0,0.00019178,2]
[373307022,1752937860106,-2539.51,0.00019178,2]
[373307023,1752937860116,-480.0,0.00019178,2]
[373307024,1752937860125,-548.18,0.00019178,2]
[373307025,1752937860135,-480.0,0.00019178,2]
[373307026,1752937860145,-15823.08,0.00019178,2]
[373307027,1752937860154,-480.0,0.00019178,2]
[373307028,1752937860164,-480.0,0.00019178,2]
[373307029,1752937860177,-480.0,0.00019178,2]
[373307030,1752937860187,-487.23,0.00019178,2]
[373307031,1752937860197,-480.0,0.00019178,2]
[373307032,1752937860207,-440.0,0.00019178,2]
[373307033,1752937860217,-466.5211479,0.00019178,2]
[373307034,1752937860227,-480.0,0.00019178,2]
[373307035,1752937860237,-564.64,0.00019178,2]
[373307036,1752937860247,-747.63,0.00019178,2]
[373307037,1752937860258,-480.0,0.00019178,2]
[373307038,1752937860268,-3300.65,0.00019178,2]
[373307039,1752937860278,-480.0,0.00019178,2]
[373307040,1752937860288,-480.0,0.00019178,2]
[373307041,1752937860298,-853.89,0.00019178,2]
[373307042,1752937860308,-747.66,0.00019178,2]
[373307043,1752937860318,-480.0,0.00019178,2]
[373307044,1752937860329,-2947.26,0.00019178,2]
[373307045,1752937860339,-480.0,0.00019178,2]
[373307046,1752937860349,-480.0,0.00019178,2]
[373307047,1752937860360,-497.37,0.00019178,2]
[373307048,1752937860370,-460.0,0.00019178,2]
[373307049,1752937860381,-815.18,0.00019178,2]
[373307050,1752937860391,-480.0,0.00019178,2]
[373307051,1752937860401,-480.0,0.00019178,2]
[373307052,1752937860411,-450.0,0.00019178,2]
[373307053,1752937860421,-480.0,0.00019178,2]
[373307054,1752937860437,-480.0,0.00019178,2]
[373307055,1752937860447,-3228.98008,0.00019178,2]
[373307056,1752937860457,-480.0,0.00019178,2]
[373307057,1752937860468,-480.0,0.00019178,2]
[373307058,1752937860478,-480.0,0.00019178,2]
[373307059,1752937860488,-380.0,0.00019178,2]
[373307060,1752937860499,-2246.54,0.00019178,2]
[373307061,1752937860508,-480.0,0.00019178,2]
[373307062,1752937860518,-480.0,0.00019178,2]
[373307063,1752937860529,-480.0,0.00019178,2]
[373307064,1752937860539,-480.0,0.00019178,2]
[373307065,1752937860549,-480.0,0.00019178,2]
[373307066,1752937860559,-480.0,0.00019178,2]
[373307067,1752937860568,-480.0,0.00019178,2]
[373307068,1752937860578,-480.0,0.00019178,2]
[373307069,1752937860588,-600.68,0.00019178,2]
[373307070,1752937860598,-480.0,0.00019178,2]
[373307071,1752937860608,-480.0,0.00019178,2]
[373307072,1752937860621,-480.0,0.00019178,2]
[373307073,1752937860633,-480.0,0.00019178,2]
[373307074,1752937860643,-636.47,0.00019178,2]
[373307075,1752937860654,-952.47,0.00019178,2]
[373307076,1752937860665,-151.0,0.00019178,2]
[373307077,1752937860677,-151.0,0.00019178,2]
[373307078,1752937860688,-151.0,0.00019178,2]
[373307079,1752937860699,-480.0,0.00019178,2]
[373307080,1752937860708,-151.0,0.00019178,2]
[373307081,1752937860719,-823.61,0.00019178,2]
[373307082,1752937860728,-603.48,0.00019178,2]
[373307083,1752937860738,-679.45,0.00019178,2]
[373307084,1752937860748,-480.0,0.00019178,2]
[373307085,1752937860758,-480.0,0.00019178,2]
[373307086,1752937860768,-480.0,0.00019178,2]
[373307087,1752937860777,-480.0,0.00019178,2]
[373307088,1752937860787,-1112.58,0.00019178,2]
[373307089,1752937860797,-480.0,0.00019178,2]
[373307090,1752937860807,-480.0,0.00019178,2]
[373307091,1752937860817,-521.09,0.00019178,2]
[373307092,1752937860827,-169.0,0.00019178,2]
[373307093,1752937860836,-156.88962715,0.00019178,2]
[373307094,1752937860846,-480.0,0.00019178,2]
[373307095,1752937860856,-153.0,0.00019178,2]
[373307096,1752937860866,-153.0,0.00019178,2]
[373307097,1752937860876,-480.0,0.00019178,2]
[373307098,1752937860886,-153.0,0.00019178,2]
[373307099,1752937860896,-174.28570945,0.00019178,2]
[373307100,1752937860906,-153.0,0.00019178,2]
[373307101,1752937860917,-480.0,0.00019178,2]
[373307102,1752937860930,-298.06731718,0.00019178,2]
[373307103,1752937861138,-480.0,0.00019178,2]
[373307104,1752937861177,-480.0,0.00019178,2]
[373307105,1752937861187,-480.0,0.00019178,2]
[373307106,1752937861196,-507.21020296,0.00019178,2]
[373307107,1752937861206,-734.97,0.00019178,2]
[373307108,1752937861215,-533.23,0.00019178,2]
[373307109,1752937861225,-480.0,0.00019178,2]
[373307110,1752937861234,-480.0,0.00019178,2]
[373307111,1752937861244,-480.0,0.00019178,2]
[373307112,1752937861253,-151.0,0.00019178,2]
[373307113,1752937861263,-151.0,0.00019178,2]
[373307114,1752937861272,-480.0,0.00019178,2]
[373307115,1752937861282,-151.0,0.00019178,2]
[373307116,1752937861291,-641.75,0.00019178,2]
[373307117,1752937861301,-151.0,0.00019178,2]
[373307118,1752937861311,-480.0,0.00019178,2]
[373307119,1752937861320,-480.0,0.00019178,2]
[373307120,1752937861330,-1771.14,0.00019178,2]
[373307121,1752937861339,-440.0,0.00019178,2]
[373307122,1752937861349,-480.0,0.00019178,2]
[373307123,1752937861359,-480.0,0.00019178,2]
[373307124,1752937861368,-480.0,0.00019178,2]
[373307125,1752937861378,-4979.04,0.00019178,2]
[373307126,1752937861387,-343.094643,0.00019178,2]
[373307127,1752937861396,-480.0,0.00019178,2]
[373307128,1752937861405,-343.094643,0.00019178,2]
[373307129,1752937861414,-343.094643,0.00019178,2]
[373307130,1752937861426,-480.0,0.00019178,2]
[373307131,1752937861436,-501.64,0.00019178,2]
[373307132,1752937861446,-343.094643,0.00019178,2]
[373307133,1752937861455,-921.12,0.00019178,2]
[373307134,1752937861464,-480.0,0.00019178,2]
[373307135,1752937861474,-480.0,0.00019178,2]
[373307136,1752937861483,-389.74090462,0.00019178,2]
[373307137,1752937861493,-414.79132103,0.00019178,2]
[373307138,1752937861503,-480.0,0.00019178,2]
[373307139,1752937861513,-480.0,0.00019178,2]
[373307140,1752937861522,-343.094643,0.00019178,2]
[373307141,1752937861532,-343.094643,0.00019178,2]
[373307142,1752937861542,-480.0,0.00019178,2]
[373307143,1752937861552,-343.094643,0.00019178,2]
[373307144,1752937861562,-480.0,0.00019178,2]
[373307145,1752937861571,-480.0,0.00019178,2]
[373307146,1752937861581,-1075.09,0.00019178,2]
[373307147,1752937861591,-480.0,0.00019178,2]
[373307148,1752937861601,-343.094643,0.00019178,2]
[373307149,1752937861611,-480.0,0.00019178,2]
[373307150,1752937861623,-819.84,0.00019178,2]
[373307151,1752937861633,-480.0,0.00019178,2]
[373307152,1752937861642,-213725.31149611,0.00019178,2]
[373307153,1752937862218,-7172.1252537,0.00019178,2]
[373307154,1752937862230,-2681.36987451,0.00019178,2]
[373307156,1752937949402,528.59778397,0.0002,120]
[373307157,1752937967033,181.88,0.0001458,2]
[373307158,1752937971242,439.48,0.00018225,120]
[373307159,1752938047242,1000.0,0.0003,120]
[373307160,1752938066165,9067.0,0.00030137,120]
[373307161,1752938087643,221.94,0.00024886,120]
[373307162,1752938087818,221.94,0.00027148,120]
[373307164,1752938177505,315.15645857,0.000211,28]
[373307165,1752938275988,5170.82,0.0003,120]
[373307167,1752938299053,278.22,0.00013699,2]
[373307170,1752938499672,460.0,0.00030136,120]
[373307175,1752938676556,2350800.4040314,0.00030137,120]
[373307176,1752938698284,1090219.34449252,0.00030137,120]
[373307187,1752938831319,902.12,0.00030136,120]
[373307189,1752938919326,55526.8077348,0.000151,2]
[373307191,1752938923207,500.0,0.00030136,120]
[373307202,1752938955483,500.0,0.00030136,120]
[373307211,1752939025165,250.0,0.00015,2]
[373307219,1752939032158,-1885.8559649,0.0001604,2]
[373307221,1752939032240,-668.9916696,0.0001604,2]
[373307222,1752939032250,-614.39302165,0.0001614,2]
[373307223,1752939032259,-164.784941,0.00016158,2]
[373307224,1752939032269,-200.0,0.0001634,2]
[373307225,1752939032278,-486.03420553,0.0001679,2]
[373307226,1752939032340,-598.85748736,0.0001679,2]
[373307227,1752939032352,-1469.9559416,0.0001679,2]
[373307228,1752939032361,-161.57914182,0.000169,2]
[373307229,1752939032371,-577.71666505,0.000169,2]
[373307230,1752939032381,-155.61054143,0.000169,2]
[373307231,1752939032390,-1200.0,0.00016949,2]
[373307232,1752939032399,-300.0,0.00016972,2]
[373307233,1752939032408,-500.0,0.00016973,2]
[373307234,1752939032418,-216.04574359,0.00016973,2]
[373307235,1752939032427,-500.0,0.00016973,2]
[373307236,1752939032437,-500.0,0.00016973,2]
[373307237,1752939032446,-500.0,0.00016973,2]
[373307238,1752939032455,-503.42568655,0.00016973,2]
[373307239,1752939032464,-500.0,0.00016973,2]
[373307240,1752939032475,-500.0,0.00016973,2]
[373307241,1752939032484,-500.0,0.00016973,2]
[373307242,1752939032493,-500.0,0.00016973,2]
[373307243,1752939032502,-525.98028464,0.00016973,2]
[373307245,1752939032512,-500.0,0.00016973,2]
[373307247,1752939032521,-500.0,0.00016973,2]
[373307249,1752939032531,-500.0,0.00016973,2]
[373307251,1752939032539,-500.0,0.00016973,2]
[373307253,1752939032549,-405.0,0.00016999,2]
[373307255,1752939032559,-216.27982428,0.00016999,2]
[373307257,1752939032570,-500.0,0.00016999,2]
[373307259,1752939032580,-500.0,0.00016999,2]
[373307261,1752939032589,-500.0,0.00016999,2]
[373307263,1752939032598,-223.7856339,0.00016999,2]
[373307265,1752939032607,-36135.54922559,0.00017,2]
[373307267,1752939032619,-595.15,0.00017,2]
[373307270,1752939032631,-3244.93119606,0.00017,2]
[373307284,1752939032753,-255.45873,0.00017,2]
[373307286,1752939032764,-723.41211066,0.00017,2]
[373307290,1752939032800,-5503.24803053,0.00017,2]
[373307308,1752939038086,-708.90676273,0.00017,2]
[373307309,1752939038107,-925.32359382,0.00017,2]
[373307310,1752939038211,-6144.66754341,0.00017,2]
[373307311,1752939038223,-27547.58489843,0.00017,2]
[373307312,1752939038234,-6152.75075694,0.00017,2]
[373307313,1752939038381,-21983.0635116,0.00017,2]
[373307314,1752939038484,-97595.3873247,0.00017,2]
[373307458,1752939040610,-476.1899999,0.00017,2]
[373307459,1752939040716,-5289.86683492,0.00017,2]
[373307460,1752939040728,-6883.38337673,0.00017,2]
[373307461,1752939040741,-4128.63986883,0.00017,2]
[373307462,1752939040753,-4432.26839026,0.00017,2]
[373307463,1752939040764,-20778.4766144,0.00017,2]
[373307464,1752939040775,-68013.5435757,0.00017,2]
[373307465,1752939040786,-1363.68834929,0.00017,2]
[373307466,1752939040798,-7182.59820952,0.00017,2]
[373307467,1752939040809,-2450.08099561,0.00017,2]
[373307468,1752939040820,-24662.07440394,0.00017,2]
[373307469,1752939040832,-1707.14956715,0.00017,2]
[373307471,1752939040843,-24104.6103854,0.00017,2]
[373307473,1752939040859,-5010.12199772,0.00017,2]
[373307476,1752939040870,-1772.85,0.00017,2]
[373307575,1752939043263,-1165.42362203,0.00017,2]
[373307576,1752939043279,-982.3577196,0.00017,2]
[373307577,1752939043296,-63917.55531435,0.00017,2]
[373307578,1752939043306,-58622.8401853,0.00017,2]
[373307579,1752939043315,-200.0,0.00017212,2]
[373307580,1752939043325,-4470.52,0.00017243,2]
[373307581,1752939043335,-166.78,0.00017255,2]
[373307582,1752939043345,-250.0,0.00017267,2]
[373307583,1752939043355,-419.64,0.00017275,2]
[373307584,1752939043364,-604.019999,0.000173,2]
[373307585,1752939043374,-2839.47561078,0.00017333,2]
[373307586,1752939043383,-150.0,0.00017433,2]
[373307587,1752939043393,-150.0,0.00017433,2]
[373307588,1752939043403,-159.45173055,0.00017433,2]
[373307589,1752939043413,-150.0,0.00017433,2]
[373307590,1752939043422,-150.0,0.00017433,2]
[373307591,1752939043432,-150.0,0.00017433,2]
[373307592,1752939043442,-150.0,0.00017433,2]
[373307593,1752939043452,-237.2793024,0.00017433,2]
[373307594,1752939043461,-150.0,0.00017433,2]
[373307595,1752939043471,-150.0,0.00017433,2]
[373307596,1752939043483,-150.0,0.00017433,2]
[373307597,1752939043493,-150.0,0.00017433,2]
[373307598,1752939043503,-150.78195813,0.00017433,2]
[373307599,1752939043513,-150.0,0.00017433,2]
[373307600,1752939043522,-150.0,0.00017433,2]
[373307601,1752939043532,-150.0,0.00017433,2]
[373307602,1752939043542,-437.09,0.00017437,2]
[373307603,1752939043552,-161.57914173,0.00017456,2]
[373307604,1752939043562,-183.77,0.00017491,2]
[373307605,1752939043571,-158.0,0.000175,2]
[373307606,1752939043581,-1000.0,0.00017521,2]
[373307607,1752939043590,-2554.84763449,0.0001754,2]
[373307608,1752939043599,-2839.47561072,0.00017588,2]
[373307609,1752939043609,-1162.76,0.00017638,2]
[373307610,1752939043619,-1000.0,0.00017656,2]
[373307611,1752939043628,-600.0,0.00017759,2]
[373307612,1752939043638,-600.0,0.00017759,2]
[373307613,1752939043648,-600.0,0.00017759,2]
[373307614,1752939043657,-559.52,0.00017759,2]
[373307615,1752939043667,-600.0,0.00017786,2]
[373307616,1752939043677,-600.0,0.00017786,2]
[373307617,1752939043686,-600.0,0.00017786,2]
[373307618,1752939043696,-600.0,0.00017786,2]
[373307619,1752939043705,-151.0,0.00017786,2]
[373307620,1752939043714,-600.0,0.00017786,2]
[373307621,1752939043723,-600.0,0.00017786,2]
[373307622,1752939043736,-600.0,0.00017786,2]
[373307623,1752939043746,-207.4,0.00017786,2]
[373307624,1752939043755,-600.0,0.00017786,2]
[373307625,1752939043764,-600.0,0.00017786,2]
[373307626,1752939043773,-600.0,0.00017786,2]
[373307627,1752939043782,-151.0,0.00017786,2]
[373307628,1752939043793,-600.0,0.00017786,2]
[373307629,1752939043802,-160.0,0.00017786,2]
[373307630,1752939043811,-600.0,0.00017786,2]
[373307631,1752939043821,-600.0,0.00017786,2]
[373307632,1752939043830,-600.0,0.00017786,2]
[373307633,1752939043839,-600.0,0.00017786,2]
[373307634,1752939043848,-600.0,0.00017786,2]
[373307635,1752939043858,-600.0,0.00017786,2]
[373307636,1752939043867,-151.0,0.00017786,2]
[373307637,1752939043877,-600.0,0.00017786,2]
[373307638,1752939043887,-600.0,0.00017786,2]
[373307639,1752939043896,-566.97069132,0.00017786,2]
[373307640,1752939043906,-500.0,0.00017786,2]
[373307641,1752939043916,-500.0,0.00017786,2]
[373307642,1752939043926,-500.0,0.00017786,2]
[373307643,1752939043936,-500.0,0.00017786,2]
[373307644,1752939043946,-500.0,0.00017786,2]
[373307645,1752939043955,-500.0,0.00017786,2]
[373307646,1752939043965,-500.0,0.00017786,2]
[373307647,1752939043976,-500.0,0.00017786,2]
[373307648,1752939044262,-500.0,0.00017786,2]
[373307649,1752939044276,-500.0,0.00017786,2]
[373307650,1752939044286,-500.0,0.00017786,2]
[373307651,1752939044296,-500.0,0.00017786,2]
[373307652,1752939044305,-500.0,0.00017786,2]
[373307653,1752939044315,-500.0,0.00017786,2]
[373307654,1752939044325,-463.20752942,0.00017786,2]
[373307655,1752939044336,-346.92554585,0.00017786,2]
[373307656,1752939044346,-7142.856,0.00017786,2]
[373307657,1752939044356,-2022.17009314,0.00017787,2]
[373307658,1752939044365,-609.36,0.00017789,2]
[373307659,1752939044375,-2691.0876095,0.00017797,2]
[373307660,1752939044389,-11942.1409957,0.00017797,2]
[373307661,1752939044475,-26729.2913948,0.00017797,2]
[373307662,1752939044485,-2839.47561072,0.00017843,2]
[373307663,1752939044495,-178.66,0.00017883,2]
[373307664,1752939044512,-154.79,0.00017927,2]
[373307665,1752939044529,-1031.75,0.00017957,2]
[373307666,1752939044538,-154.79,0.00017963,2]
[373307667,1752939044548,-154.79,0.00017999,2]
[373307668,1752939044558,-1004.32704208,0.00018,2]
[373307669,1752939044567,-161.57914173,0.00018011,2]
[373307670,1752939044577,-154.79,0.00018035,2]
[373307671,1752939044587,-1500.0,0.00018068,2]
[373307672,1752939044597,-154.79,0.00018071,2]
[373307673,1752939044606,-2839.47561072,0.00018097,2]
[373307674,1752939044616,-221.94,0.00018099,2]
[373307675,1752939044627,-154.79,0.00018107,2]
[373307676,1752939044637,-577.71666504,0.00018127,2]
[373307677,1752939044647,-1079.77787475,0.00018161,2]
[373307678,1752939044657,-3781.92,0.000182,2]
[373307679,1752939044666,-2554.84763449,0.0001829,2]
[373307680,1752939044676,-437.09,0.00018308,2]
[373307681,1752939044686,-155.65,0.00018329,2]
[373307682,1752939044695,-600.0,0.00018334,2]
[373307683,1752939044705,-7407.141672,0.00018334,2]
[373307684,1752939044715,-2839.47561072,0.00018352,2]
[373307685,1752939044726,-660.46520849,0.00018487,2]
[373307686,1752939044735,-420.0,0.00018537,2]
[373307687,1752939044745,-161.57914173,0.00018567,2]
[373307688,1752939044755,-200.0,0.000186,6]
[373307689,1752939044764,-1680.0,0.00018605,2]
[373307690,1752939044774,-2839.47561072,0.00018607,2]
[373307691,1752939044784,-665.0,0.00018611,2]
[373307692,1752939044793,-102.8682461,0.00018614,2]
[373307693,1752939046434,-562.1317539,0.00018614,2]
[373307694,1752939046444,-665.0,0.00018614,2]
[373307695,1752939046454,-665.0,0.00018638,2]
[373307696,1752939046463,-500.0,0.000187,6]
[373307697,1752939046473,-665.0,0.00018702,2]
[373307698,1752939046483,-665.0,0.00018706,2]
[373307699,1752939046493,-150.0,0.0001874,2]
[373307700,1752939046502,-150.0,0.00018744,2]
[373307701,1752939046512,-665.0,0.00018765,2]
[373307702,1752939046522,-155.0,0.0001878,2]
[373307703,1752939046532,-1400.515103,0.00018794,2]
[373307704,1752939046541,-6901.8463,0.000188,2]
[373307705,1752939046551,-800.0,0.000188,6]
[373307706,1752939046561,-2839.47561072,0.00018862,2]
[373307707,1752939046572,-600.0,0.00018882,2]
[373307708,1752939046582,-7681.20591386,0.00018882,2]
[373307709,1752939046591,-1100.0,0.000189,6]
[373307710,1752939046600,-159.46330753,0.000189,2]
[373307711,1752939046610,-159.46330747,0.000189,2]
[373307712,1752939046620,-159.46330747,0.000189,2]
[373307713,1752939046629,-159.46330747,0.000189,2]
[373307714,1752939046640,-159.46330747,0.000189,2]
[373307715,1752939046650,-159.46330747,0.000189,2]
[373307716,1752939046660,-159.46330747,0.000189,2]
[373307717,1752939046670,-159.46330747,0.000189,2]
[373307718,1752939046679,-159.46330747,0.000189,2]
[373307719,1752939046689,-159.46330747,0.000189,2]
[373307720,1752939046699,-665.0,0.00018982,2]
[373307721,1752939046710,-1210.0,0.0001899,2]
[373307722,1752939046719,-1210.0,0.0001899,2]
[373307723,1752939046730,-1224.60918743,0.0001899,2]
[373307724,1752939046740,-1210.0,0.0001899,2]
[373307725,1752939046750,-1210.0,0.0001899,2]
[373307726,1752939046759,-2690.81674,0.0001899,2]
[373307727,1752939046769,-152.0,0.0001899,2]
[373307728,1752939046779,-265.9396,0.00019,2]
[373307729,1752939046788,-200.0,0.00019025,2]
[373307730,1752939046798,-665.0,0.00019038,2]
[373307731,1752939046808,-2554.84763449,0.0001904,2]
[373307732,1752939046817,-665.0,0.00019049,2]
[373307733,1752939046827,-667.0,0.00019062,2]
[373307734,1752939046837,-874.43121618,0.00019063,2]
[373307735,1752939046847,-1000.0,0.00019067,2]
[373307736,1752939046857,-29326.6388,0.00019067,2]
[373307737,1752939046866,-2500.0,0.00019067,2]
[373307738,1752939046876,-665.0,0.00019073,2]
[373307739,1752939046886,-500.0,0.00019077,2]
[373307740,1752939046897,-197.98227338,0.00019077,2]
[373307741,1752939046907,-195.08463701,0.00019077,2]
[373307742,1752939046916,-219.65735955,0.00019077,2]
[373307743,1752939046926,-802.08815737,0.00019078,2]
[373307744,1752939046936,-10000.0,0.00019078,2]
[373307745,1752939046946,-159.46330747,0.00019079,2]
[373307746,1752939046956,-5888.0,0.0001909,2]
[373307747,1752939046966,-2690.81674,0.0001909,2]
[373307748,1752939046976,-2839.47561072,0.00019116,2]
[373307749,1752939046986,-161.57914173,0.00019122,2]
[373307750,1752939046996,-150.0,0.00019133,2]
[373307751,1752939047006,-150.0,0.00019133,2]
[373307753,1752939047015,-256.356,0.0001915,2]
[373307755,1752939047025,-5030.334,0.0001915,2]
[373307757,1752939047034,-215.0738,0.00019155,2]
[373307759,1752939047044,-160.0,0.00019155,2]
[373307761,1752939047053,-359.76179104,0.00019155,2]
[373307763,1752939047067,-5222.4095499,0.00019167,2]
[373307765,1752939047076,-20590.3721936,0.00019167,2]
[373307766,1752939047086,-963.8642058,0.00019167,2]
[373307767,1752939047095,-42585.234619,0.00019167,2]
[373307768,1752939047106,-795.88647139,0.00019168,2]
[373307769,1752939047115,-500.0,0.00019173,2]
[373307770,1752939047127,-500.0,0.00019173,2]
[373307771,1752939047137,-500.0,0.00019173,2]
[373307772,1752939047147,-500.0,0.00019173,2]
[373307773,1752939047157,-159.69252979,0.00019173,2]
[373307774,1752939047167,-500.0,0.00019173,2]
[373307775,1752939047178,-159.68843081,0.00019173,2]
[373307776,1752939047188,-159.72493506,0.00019173,2]
[373307777,1752939047199,-297.89302912,0.00019173,2]
[373307778,1752939047208,-500.0,0.00019173,2]
[373307779,1752939047218,-159.73387204,0.00019173,2]
[373307780,1752939047229,-159.73883914,0.00019173,2]
[373307781,1752939047239,-159.67752946,0.00019173,2]
[373307782,1752939047248,-339.78210656,0.00019173,2]
[373307783,1752939047259,-500.0,0.00019173,2]
[373307784,1752939047269,-159.92024077,0.00019173,2]
[373307785,1752939047281,-159.6953849,0.00019173,2]
[373307786,1752939047291,-159.71152488,0.00019173,2]
[373307787,1752939047300,-500.0,0.00019173,2]
[373307788,1752939047310,-159.69881196,0.00019173,2]
[373307789,1752939047320,-159.6784735,0.00019173,2]
[373307790,1752939047330,-159.7402738,0.00019173,2]
[373307791,1752939047340,-373.28659583,0.00019173,2]
[373307792,1752939047349,-159.68,0.00019173,2]
[373307793,1752939047359,-159.71983206,0.00019173,2]
[373307794,1752939047369,-500.23779124,0.00019173,2]
[373307795,1752939047379,-500.0,0.00019173,2]
[373307796,1752939047390,-500.14519777,0.00019173,2]
[373307797,1752939047401,-500.51753091,0.00019173,2]
[373307798,1752939047412,-500.0,0.00019173,2]
[373307799,1752939047422,-154.5490942,0.00019173,2]
[373307800,1752939047432,-162.21161961,0.00019173,2]
[373307801,1752939047443,-335.03225348,0.00019173,2]
[373307802,1752939047454,-500.0,0.00019173,2]
[373307803,1752939047464,-500.0,0.00019173,2]
[373307804,1752939047474,-500.0,0.00019173,2]
[373307805,1752939047484,-500.0,0.00019173,2]
[373307806,1752939047494,-435.91971416,0.00019173,2]
[373307807,1752939047503,-500.0,0.00019173,2]
[373307808,1752939047514,-165.33705299,0.00019173,2]
[373307809,1752939047523,-500.0,0.00019173,2]
[373307810,1752939047533,-500.0,0.00019173,2]
[373307811,1752939047543,-500.0,0.00019173,2]
[373307812,1752939047552,-159.67278326,0.00019173,2]
[373307813,1752939047562,-158.26150375,0.00019173,2]
[373307814,1752939047572,-159.66266065,0.00019173,2]
[373307815,1752939047581,-500.0,0.00019173,2]
[373307816,1752939047591,-500.0,0.00019173,2]
[373307817,1752939047601,-500.0,0.00019173,2]
[373307818,1752939047610,-500.0,0.00019173,2]
[373307819,1752939047620,-500.0,0.00019173,2]
[373307820,1752939047629,-500.0,0.00019173,2]
[373307821,1752939047639,-164.07181999,0.00019173,2]
[373307822,1752939047648,-501.5060876,0.00019173,2]
[373307823,1752939047658,-500.0,0.00019173,2]
[373307824,1752939047667,-460.0,0.00019178,2]
[373307825,1752939047677,-480.0,0.00019178,2]
[373307826,1752939047686,-480.0,0.00019178,2]
[373307827,1752939047695,-425.73042274,0.00019178,2]
[373307828,1752939047705,-420.0,0.00019178,2]
[373307829,1752939047714,-480.0,0.00019178,2]
[373307830,1752939047727,-480.0,0.00019178,2]
[373307831,1752939047737,-601.02191109,0.00019178,2]
[373307832,1752939047747,-460.0,0.00019178,2]
[373307833,1752939047757,-460.0,0.00019178,2]
[373307834,1752939047767,-460.0,0.00019178,2]
[373307835,1752939047777,-460.0,0.00019178,2]
[373307836,1752939047787,-460.0,0.00019178,2]
[373307837,1752939047797,-151.0,0.00019178,2]
[373307838,1752939047807,-480.0,0.00019178,2]